fUST/lending_fUST_20250913
["ID","MTS","AMOUNT","RATE_DAILY","PERIOD"]
[385277715,1757733049209,-31.04449215,0.00027252,7]
[385277716,1757733049219,-219.288581,0.00027252,7]
[385277717,1757733049228,-219.288582,0.00027252,7]
[385277718,1757733049238,-151.0,0.00027252,7]
[385277719,1757733049247,-3.271919,0.00027252,7]
[385277720,1757733049259,-147.728081,0.00027252,7]
[385277721,1757733049268,-151.0,0.00027252,7]
[385277722,1757733049278,-157.177207,0.00027252,7]
[385277723,1757733049288,-151.0,0.00027252,7]
[385277724,1757733049297,-154.133561,0.00027252,7]
[385277725,1757733049307,-154.133561,0.00027252,7]
[385277726,1757733049316,-154.133561,0.00027252,7]
[385277727,1757733049326,-154.13357,0.00027252,7]
[385277728,1757733049335,-194.721794,0.00027252,7]
[385277729,1757733049345,-194.721794,0.00027252,7]
[385277730,1757733049356,-194.721794,0.00027252,7]
[385277731,1757733049366,-194.721794,0.00027252,7]
[385277732,1757733049375,-194.721794,0.00027252,7]
[385277733,1757733049385,-194.721794,0.00027252,7]
[385277734,1757733049394,-194.721794,0.00027252,7]
[385277735,1757733049404,-194.72179,0.00027252,7]
[385277736,1757733049413,-151.0,0.00027252,7]
[385277737,1757733049423,-151.0,0.00027252,7]
[385277738,1757733049432,-272.047191,0.00027252,7]
[385277739,1757733049442,-156.100488,0.00027252,7]
[385277740,1757733049451,-151.0,0.00027252,7]
[385277741,1757733049461,-198.62115,0.00027252,7]
[385277742,1757733049470,-151.0,0.00027252,7]
[385277743,1757733049480,-151.0,0.00027252,7]
[385277744,1757733049489,-151.0,0.00027252,7]
[385277745,1757733049499,-151.0,0.00027252,7]
[385277746,1757733049508,-151.0,0.00027252,7]
[385277747,1757733049518,-239.511764,0.00027252,7]
[385277748,1757733049527,-809.00217972,0.00027252,7]
[385277749,1757733049540,-38.12557401,0.00027252,7]
[385277750,1757733049550,-500.0,0.00027252,2]
[385277751,1757733049560,-300.0,0.00027252,2]
[385277752,1757733049570,-151.600442,0.00027262,7]
[385277753,1757733049580,-151.0,0.00027262,7]
[385277754,1757733049589,-151.0,0.00027262,7]
[385277755,1757733049598,-151.0,0.00027262,7]
[385277756,1757733049608,-154.143457,0.00027262,7]
[385277757,1757733049618,-2524.82941417,0.00027265,2]
[385277758,1757733049629,-160.0,0.00027295,5]
[385277759,1757733049639,-151.0,0.000273,17]
[385277760,1757733049649,-2618.2481025,0.0002732,2]
[385277761,1757733049660,-500.0,0.00027339,2]
[385277762,1757733049669,-2761.79844067,0.00027349,2]
[385277763,1757733049680,-4283.70000004,0.00027349,2]
[385277764,1757733049692,-1134.9599999,0.00027349,2]
[385277765,1757733049703,-1919.6226,0.00027349,2]
[385277766,1757733049715,-860.84,0.00027349,2]
[385277767,1757733049726,-1744.34924505,0.00027349,2]
[385277770,1757733540313,502.71304474,0.00024,30]
[385277771,1757733604328,2056.32,0.00024,30]
[385277784,1757734201862,2000.0,0.00027349,120]
[385277785,1757734202131,2000.0,0.00027349,120]
[385277786,1757734202432,2000.0,0.00027349,120]
[385277787,1757734202904,2000.0,0.00027349,120]
[385277788,1757734203000,2000.0,0.00027349,120]
[385277789,1757734203483,2000.0,0.00027349,120]
[385277790,1757734203757,2000.0,0.00027349,120]
[385277791,1757734204036,2000.0,0.00027349,120]
[385277792,1757734204311,1619.333,0.00027349,120]
[385277825,1757734232612,-153.08382945,0.0001678,2]
[385277826,1757734232625,-5000.0,0.00019701,2]
[385277828,1757734232634,-309.6386089,0.000199,2]
[385277830,1757734232643,-309.63860878,0.00021149,2]
[385277832,1757734232652,-309.63860878,0.00022398,2]
[385277834,1757734232662,-309.63860878,0.00023647,2]
[385277836,1757734232671,-169.8504244,0.00023721,2]
[385277838,1757734232681,-1200.0,0.00023999,2]
[385277840,1757734232691,-2013.66,0.00024,2]
[385277842,1757734232699,-160.0,0.00024824,2]
[385277844,1757734232709,-160.0,0.00024824,2]
[385277846,1757734232718,-217.73838971,0.00024824,2]
[385277848,1757734232727,-847.12775373,0.00024824,2]
[385277850,1757734232736,-160.0,0.00024824,2]
[385277852,1757734232746,-233.1568031,0.00024824,2]
[385277854,1757734232755,-300.0,0.0002483,2]
[385277856,1757734232764,-349.0,0.00024846,2]
[385277858,1757734232774,-309.63860878,0.00024896,2]
[385277860,1757734232783,-1000.0,0.00024931,10]
[385277862,1757734232792,-8630.06469212,0.00025,7]
[385277864,1757734232801,-168.0,0.00025246,2]
[385277865,1757734232810,-300.0,0.00025451,20]
[385277866,1757734232821,-300.0,0.00025451,20]
[385277867,1757734232840,-300.0,0.00025451,20]
[385277868,1757734232856,-300.0,0.00025451,20]
[385277869,1757734232866,-300.0,0.00025451,20]
[385277870,1757734232875,-300.0,0.00025451,20]
[385277871,1757734232884,-300.0,0.00025451,20]
[385277872,1757734232893,-300.0,0.00025451,20]
[385277873,1757734232902,-300.0,0.00025451,20]
[385277874,1757734232912,-300.0,0.00025451,20]
[385277875,1757734232921,-300.0,0.00025451,20]
[385277876,1757734232930,-300.0,0.00025451,20]
[385277877,1757734232940,-300.0,0.00025451,20]
[385277878,1757734232949,-300.0,0.00025451,20]
[385277879,1757734232958,-300.0,0.00025451,20]
[385277880,1757734232967,-863.3132805,0.00025479,10]
[385277881,1757734232976,-560.67310983,0.00025761,2]
[385277882,1757734232986,-2242.69243934,0.00025761,2]
[385277883,1757734232995,-5041.01193052,0.00025761,2]
[385277884,1757734233004,-392.93310701,0.00025761,2]
[385277885,1757734233013,-1571.73242803,0.00025761,2]
[385277886,1757734233023,-3536.39796306,0.00025761,2]
[385277887,1757734233032,-6280.64278239,0.00025761,2]
[385277888,1757734233041,-168.0,0.00025824,7]
[385277889,1757734233051,-600.0,0.00025959,20]
[385277890,1757734233061,-168.0,0.00025977,2]
[385277891,1757734233071,-168.0,0.00026079,2]
[385277892,1757734233080,-409.0,0.00026134,2]
[385277893,1757734233089,-309.63860878,0.00026145,4]
[385277894,1757734233099,-2264.10087164,0.00026323,2]
[385277895,1757734233108,-2347.87260389,0.00026378,2]
[385277896,1757734233119,-168.0,0.00026414,2]
[385277897,1757734233128,-950.40718671,0.00026433,2]
[385277898,1757734233138,-161.0,0.000265,20]
[385277899,1757734233147,-161.0,0.000265,15]
[385277900,1757734233156,-161.0,0.000265,15]
[385277901,1757734233165,-168.0,0.00026604,2]
[385277902,1757734233174,-168.0,0.00026615,2]
[385277903,1757734233184,-264.455,0.00026631,14]
[385277904,1757734233193,-168.0,0.00026631,2]
[385277905,1757734233203,-168.0,0.00026641,2]
[385277906,1757734233212,-499.3,0.00026684,2]
[385277907,1757734233222,-500.0,0.00026723,2]
[385277908,1757734233231,-500.0,0.00026732,2]
[385277909,1757734233241,-168.0,0.00026751,2]
[385277910,1757734233251,-500.0,0.00026871,2]
[385277911,1757734233262,-500.0,0.00026874,2]
[385277912,1757734233272,-420.0,0.00026904,2]
[385277913,1757734233281,-15015.42390756,0.00027,60]
[385277914,1757734233296,-878.17239486,0.00027,60]
[385277915,1757734233308,-628.08103735,0.00027,60]
[385277916,1757734233319,-795.36420338,0.00027,60]
[385277933,1757734238489,-417.15472785,0.00025761,2]
[385277934,1757734238498,-161.0,0.000265,10]
[385277935,1757734238508,-23393.79784439,0.00027,60]
[385277936,1757734238542,-2563.73805655,0.00027,60]
[385277937,1757734238553,-682.81930476,0.00027,60]
[385277938,1757734238565,-502.16390127,0.00027,60]
[385277939,1757734238576,-398.73,0.00027,60]
[385277941,1757734238587,-5010.39655664,0.00027,60]
[385277942,1757734238596,-600.0,0.00027,14]
[385277944,1757734238616,-500.0,0.00027012,2]
[385277946,1757734238626,-168.0,0.00027051,7]
[385277948,1757734238636,-3209.80477818,0.00027064,2]
[385277950,1757734238646,-500.0,0.00027093,2]
[385277952,1757734238655,-500.0,0.00027102,2]
[385277954,1757734238665,-6951.79866521,0.00027164,2]
[385277957,1757734238676,-1154.0,0.00027164,2]
[385277959,1757734238691,-594.82644238,0.00027164,2]
[385277961,1757734238703,-2755.28152188,0.00027164,2]
[385277994,1757734243713,-161.0,0.000265,10]
[385277995,1757734243723,-179972.48160953,0.00027164,2]
[385277996,1757734243732,-13300.4518986,0.00027164,2]
[385277997,1757734243742,-157.0,0.00027165,2]
[385277998,1757734243751,-157.0,0.00027165,2]
[385277999,1757734243760,-157.0,0.00027165,2]
[385278000,1757734243769,-158.38090722,0.00027165,2]
[385278001,1757734243779,-157.0,0.00027165,2]
[385278002,1757734243788,-157.0,0.00027165,2]
[385278003,1757734243797,-290.66513339,0.00027165,2]
[385278004,1757734243806,-157.0,0.00027165,2]
[385278005,1757734243816,-157.0,0.00027165,2]
[385278006,1757734243825,-157.0,0.00027165,2]
[385278007,1757734243835,-500.0,0.00027165,2]
[385278009,1757734243844,-500.0,0.00027165,2]
[385278010,1757734243854,-157.0,0.00027165,2]
[385278011,1757734243863,-16457.8895452,0.00027172,2]
[385278012,1757734243873,-500.0,0.00027173,2]
[385278013,1757734243882,-500.0,0.00027173,2]
[385278015,1757734243891,-500.98274908,0.00027173,2]
[385278017,1757734243902,-500.0,0.00027173,2]
[385278019,1757734243911,-564.35,0.00027173,2]
[385278021,1757734243920,-1305.0,0.00027174,3]
[385278023,1757734243930,-1305.0,0.00027174,3]
[385278025,1757734243939,-1305.0,0.00027174,3]
[385278027,1757734243948,-1305.0,0.00027174,3]
[385278029,1757734243957,-1305.0,0.00027174,3]
[385278031,1757734243967,-1305.0,0.00027174,3]
[385278033,1757734243976,-1305.0,0.00027174,3]
[385278035,1757734243985,-1305.0,0.00027174,3]
[385278037,1757734243995,-1305.0,0.00027174,3]
[385278039,1757734244004,-1305.0,0.00027174,3]
[385278041,1757734244013,-1305.0,0.00027174,3]
[385278043,1757734244023,-1305.0,0.00027174,3]
[385278055,1757734244117,-1305.0,0.00027174,3]
[385278057,1757734244127,-1305.0,0.00027174,3]
[385278059,1757734244136,-1305.0,0.00027174,3]
[385278061,1757734244146,-1305.0,0.00027174,3]
[385278063,1757734244156,-1305.0,0.00027174,3]
[385278065,1757734244166,-1305.0,0.00027174,3]
[385278066,1757734244175,-1305.0,0.00027174,3]
[385278068,1757734244184,-1305.0,0.00027174,3]
[385278070,1757734244194,-1305.0,0.00027174,3]
[385278072,1757734244203,-1305.0,0.00027174,3]
[385278074,1757734244213,-1305.0,0.00027174,3]
[385278077,1757734244223,-1305.0,0.00027174,3]
[385278078,1757734244232,-1305.0,0.00027174,3]
[385278080,1757734244242,-1305.0,0.00027174,3]
[385278083,1757734244251,-1305.0,0.00027174,3]
[385278084,1757734244261,-1296.71240479,0.00027174,3]
[385278087,1757734244270,-1305.0,0.00027174,3]
[385278088,1757734244279,-1305.0,0.00027174,3]
[385278090,1757734244289,-1305.0,0.00027174,3]
[385278092,1757734244298,-1305.0,0.00027174,3]
[385278094,1757734244307,-1305.0,0.00027174,3]
[385278096,1757734244316,-217.73838971,0.00027174,3]
[385278098,1757734244326,-233.1568031,0.00027174,3]
[385278100,1757734244335,-417.15472785,0.00027174,3]
[385278102,1757734244344,-847.12775373,0.00027174,3]
[385278104,1757734244353,-500.0,0.00027189,2]
[385278106,1757734244364,-1358.47859543,0.00027249,2]
[385278109,1757734244374,-150.52828701,0.00027252,14]
[385278111,1757734244382,-161.0,0.000273,30]
[385278113,1757734244392,-12976.7023533,0.0002731,2]
[385278115,1757734244401,-1967.7250022,0.0002731,2]
[385278117,1757734244412,-2534.7743716,0.0002731,2]
[385278119,1757734244422,-4821.5988492,0.0002731,2]
[385278121,1757734244431,-191428.388239,0.00027339,2]
[385278123,1757734244441,-13300.4518986,0.00027339,2]
[385278125,1757734244451,-151.0,0.00027349,3]
[385278127,1757734244460,-154.24264085,0.00027349,3]
[385278129,1757734244470,-1305.0,0.00027349,3]
[385278131,1757734244480,-1305.0,0.00027349,3]
[385278133,1757734244491,-1305.0,0.00027349,3]
[385278135,1757734244499,-1305.0,0.00027349,3]
[385278137,1757734244509,-1305.0,0.00027349,3]
[385278139,1757734244518,-1305.0,0.00027349,3]
[385278141,1757734244527,-1305.0,0.00027349,3]
[385278143,1757734244536,-1048.31459378,0.00027349,3]
[385278145,1757734244545,-161.0,0.00027349,3]
[385278147,1757734244555,-161.0,0.00027349,3]
[385278149,1757734244564,-161.0,0.00027349,3]
[385278151,1757734244573,-328.0,0.00027349,3]
[385278153,1757734244583,-328.0,0.00027349,3]
[385278155,1757734244592,-328.0,0.00027349,3]
[385278157,1757734244601,-328.0,0.00027349,3]
[385278159,1757734244611,-328.0,0.00027349,3]
[385278161,1757734244620,-328.0,0.00027349,3]
[385278163,1757734244630,-328.0,0.00027349,3]
[385278165,1757734244639,-328.0,0.00027349,3]
[385278168,1757734244656,-328.0,0.00027349,3]
[385278171,1757734244674,-328.0,0.00027349,3]
[385278174,1757734244692,-328.0,0.00027349,3]
[385278177,1757734244711,-328.0,0.00027349,3]
[385278180,1757734244730,-328.0,0.00027349,3]
[385278183,1757734244748,-328.0,0.00027349,3]
[385278186,1757734244765,-328.0,0.00027349,3]
[385278189,1757734244780,-328.0,0.00027349,3]
[385278191,1757734244794,-328.0,0.00027349,3]
[385278194,1757734244810,-328.0,0.00027349,3]
[385278197,1757734244828,-328.0,0.00027349,3]
[385278200,1757734244848,-328.0,0.00027349,3]
[385278202,1757734244860,-328.0,0.00027349,3]
[385278205,1757734244879,-328.0,0.00027349,3]
[385278208,1757734244892,-328.0,0.00027349,3]
[385278211,1757734244908,-328.0,0.00027349,3]
[385278213,1757734244920,-328.0,0.00027349,3]
[385278216,1757734244934,-328.0,0.00027349,3]
[385278218,1757734244951,-328.0,0.00027349,3]
[385278221,1757734244966,-328.0,0.00027349,3]
[385278224,1757734244980,-328.0,0.00027349,3]
[385278226,1757734244995,-328.0,0.00027349,3]
[385278229,1757734245008,-328.0,0.00027349,3]
[385278231,1757734245023,-328.0,0.00027349,3]
[385278234,1757734245037,-328.0,0.00027349,3]
[385278236,1757734245050,-328.0,0.00027349,3]
[385278239,1757734245064,-407.5619726,0.00027349,3]
[385278241,1757734245079,-161.0,0.00027349,3]
[385278244,1757734245092,-161.0,0.00027349,3]
[385278246,1757734245106,-161.0,0.00027349,3]
[385278249,1757734245121,-161.0,0.00027349,3]
[385278251,1757734245134,-157.88119504,0.00027349,3]
[385278254,1757734245148,-417.15472785,0.00027349,3]
[385278256,1757734245161,-151.823626,0.00027359,7]
[385278259,1757734245175,-151.0,0.00027359,7]
[385278261,1757734245188,-151.0,0.00027359,7]
[385278264,1757734245202,-157.0,0.00027369,7]
[385278266,1757734245215,-157.0,0.00027369,7]
[385278269,1757734245230,-157.0,0.00027369,7]
[385278271,1757734245244,-306.72637128,0.00027369,7]
[385278274,1757734245258,-500.0,0.00027369,7]
[385278276,1757734245272,-157.0,0.00027369,7]
[385278279,1757734245286,-157.0,0.00027369,7]
[385278281,1757734245300,-500.0,0.00027371,2]
[385278284,1757734245314,-501.81850071,0.00027373,2]
[385278286,1757734245327,-500.0,0.00027373,2]
[385278289,1757734245341,-500.0,0.00027373,2]
[385278291,1757734245355,-500.0,0.00027373,2]
[385278294,1757734245370,-2001.00441229,0.0002739,2]
[385278296,1757734245380,-197.44336635,0.0002739,2]
[385278298,1757734245391,-161.3744681,0.0002739,7]
[385278300,1757734245400,-309.63860878,0.00027394,7]
[385278302,1757734245412,-163.203261,0.00027397,2]
[385278304,1757734245421,-200.0,0.00027397,5]
[385278321,1757734245576,-1741.98469899,0.00027399,120]
[385278325,1757734245602,-151.0,0.00027402,7]
[385278328,1757734245615,-500.0,0.00027412,5]
[385278330,1757734245625,-1000.0,0.00027416,10]
[385278332,1757734245635,-159.2402573,0.00027425,30]
[385278334,1757734245644,-500.0,0.00027431,2]
[385278336,1757734245654,-168.0,0.00027435,2]
[385278338,1757734245664,-157.0,0.00027439,2]
[385278340,1757734245673,-157.0,0.00027439,2]
[385278342,1757734245682,-157.0,0.00027439,2]
[385278344,1757734245692,-157.0,0.00027439,2]
[385278346,1757734245701,-157.0,0.00027439,2]
[385278348,1757734245710,-157.0,0.00027439,2]
[385278350,1757734245720,-157.0,0.00027439,2]
[385278352,1757734245729,-157.0,0.00027439,2]
[385278354,1757734245738,-500.0,0.00027439,2]
[385278356,1757734245748,-500.0,0.00027439,2]
[385278358,1757734245758,-191.08754469,0.00027439,2]
[385278360,1757734245767,-500.0,0.00027473,5]
[385278362,1757734245776,-500.0,0.00027473,5]
[385278364,1757734245785,-500.0,0.00027473,5]
[385278366,1757734245794,-501.17023342,0.00027473,5]
[385278368,1757734245804,-151.34575888,0.00027473,5]
[385278370,1757734245813,-168.0,0.00027499,2]
[385278372,1757734245823,-500.0,0.000275,2]
[385278373,1757734245833,-45281.72784971,0.000275,2]
[385278375,1757734245842,-168.0,0.00027512,2]
[385278377,1757734245851,-168.0,0.00027549,2]
[385278379,1757734245861,-1000.0,0.00027553,10]
[385278381,1757734245870,-168.0,0.0002757,2]
[385278383,1757734245880,-151.0,0.000276,17]
[385278385,1757734245889,-500.0,0.00027604,2]
[385278387,1757734245899,-365499.18299579,0.0002761,2]
[385278417,1757734246135,-17357.59348321,0.0002761,2]
[385278419,1757734246145,-53201.8075945,0.0002761,2]
[385278421,1757734246155,-188989.90195074,0.0002762,2]
[385278424,1757734246164,-257.325045,0.0002762,7]
[385278427,1757734246174,-160.0,0.00027641,6]
[385278430,1757734246183,-157.0,0.00027643,7]
[385278432,1757734246192,-157.72913038,0.00027643,7]
[385278434,1757734246202,-187.90494288,0.00027643,7]
[385278436,1757734246212,-500.0,0.00027643,7]
[385278438,1757734246222,-157.0,0.00027643,7]
[385278440,1757734246232,-157.0,0.00027643,7]
[385278442,1757734246242,-500.0,0.00027649,2]
[385278444,1757734246251,-168.0,0.0002767,2]
[385278446,1757734246261,-500.0,0.0002768,2]
[385278448,1757734246270,-161.11240797,0.00027681,2]
[385278450,1757734246280,-2287.9028349,0.00027681,2]
[385278452,1757734246289,-1358.4785954,0.00027685,2]
[385278454,1757734246298,-680.32659825,0.00027689,2]
[385278456,1757734246307,-1000.0,0.0002769,10]
[385278457,1757734246317,-1000.0,0.0002769,10]
[385278459,1757734246326,-8113.30850785,0.000277,10]
[385278461,1757734246336,-217.73838971,0.000277,10]
[385278463,1757734246345,-417.15472785,0.000277,10]
[385278466,1757734246356,-160.0,0.000277,10]
[385278467,1757734246366,-13300.4518986,0.00027703,2]
[385278470,1757734246375,-157.0,0.00027713,2]
[385278471,1757734246385,-157.0,0.00027713,2]
[385278473,1757734246394,-157.0,0.00027713,2]
[385278475,1757734246404,-157.53101875,0.00027713,2]
[385278477,1757734246418,-157.0,0.00027713,2]
[385278479,1757734246427,-157.0,0.00027713,2]
[385278481,1757734246436,-157.0,0.00027713,2]
[385278483,1757734246445,-188.87724383,0.00027713,2]
[385278485,1757734246460,-500.0,0.00027713,2]
[385278487,1757734246470,-500.0,0.00027713,2]
[385278490,1757734246479,-168.0,0.0002772,2]
[385278492,1757734246490,-1000.0,0.00027721,5]
[385278493,1757734246500,-1114.69456251,0.00027721,5]
[385278495,1757734246509,-1000.0,0.00027721,5]
[385278497,1757734246518,-500.0,0.00027751,2]
[385278499,1757734246527,-161.11240797,0.00027781,2]
[385278501,1757734246536,-2287.9028349,0.00027781,2]
[385278503,1757734246545,-500.58843343,0.00027799,2]
[385278505,1757734246555,-1000.0,0.000278,50]
[385278507,1757734246564,-966.45,0.00027805,2]
[385278509,1757734246574,-500.0,0.0002784,2]
[385278511,1757734246584,-500.0,0.00027846,2]
[385278513,1757734246593,-161.11240797,0.00027881,2]
[385278515,1757734246603,-1000.0,0.000279,120]
[385278517,1757734246612,-500.0,0.00027902,2]
[385278519,1757734246622,-157.0,0.00027917,7]
[385278522,1757734246631,-189.23412033,0.00027917,7]
[385278524,1757734246641,-157.0,0.00027917,7]
[385278526,1757734246650,-157.0,0.00027917,7]
[385278528,1757734246659,-1003.48282384,0.00027921,5]
[385278530,1757734246668,-551.3237218,0.00027921,5]
[385278531,1757734246677,-1000.0,0.00027921,2]
[385278533,1757734246686,-500.0,0.0002796,5]
[385278535,1757734246695,-161.11240797,0.00027981,2]
[385278538,1757734246705,-198.97386667,0.00027987,2]
[385278540,1757734246714,-157.0,0.00027987,2]
[385278542,1757734246723,-157.0,0.00027987,2]
[385278543,1757734246732,-157.0,0.00027987,2]
[385278546,1757734246741,-157.0,0.00027987,2]
[385278548,1757734246750,-217.27016964,0.00027987,2]
[385278549,1757734246759,-500.0,0.00027987,2]
[385278551,1757734246769,-355.01464627,0.00027987,2]
[385278553,1757734246779,-160.0,0.00027987,7]
[385278555,1757734246788,-13300.4518986,0.0002799,2]
[385278557,1757734246797,-20000.0,0.00028,30]
[385278559,1757734246806,-40687.41,0.00028,14]
[385278561,1757734246815,-417.15472785,0.00028,30]
[385278563,1757734246825,-3787.29229885,0.00028,3]
[385278565,1757734246834,-160.0,0.00028,30]
[385278567,1757734246844,-10288.15241663,0.00028,5]
[385278569,1757734246853,-7040.34763619,0.00028,120]
[385278571,1757734246863,-391.2556725,0.00028021,5]
[385278573,1757734246872,-1000.0,0.00028021,5]
[385278575,1757734246882,-1000.0,0.00028021,5]
[385278577,1757734246891,-300.0,0.00028021,5]
[385278579,1757734246900,-250.0,0.00028021,5]
[385278581,1757734246909,-3209.80477817,0.00028028,2]
[385278583,1757734246919,-168.0,0.00028035,2]
[385278585,1757734246928,-168.0,0.00028035,2]
[385278587,1757734246938,-842.02108148,0.00028045,2]
[385278589,1757734246947,-161.11240797,0.00028081,2]
[385278591,1757734246956,-296.91469776,0.0002812,120]
[385278593,1757734246966,-1358.4785954,0.0002812,2]
[385278595,1757734246975,-151.0,0.00028132,7]
[385278597,1757734246985,-161.11240797,0.00028181,2]
[385278599,1757734246994,-187.00850129,0.00028191,7]
[385278601,1757734247004,-186.49000494,0.00028191,7]
[385278603,1757734247013,-187.73311826,0.00028191,7]
[385278605,1757734247022,-629.0,0.000282,60]
[385278607,1757734247032,-1604.0,0.00028204,7]
[385278609,1757734247042,-155.96508,0.00028205,10]
[385278611,1757734247051,-186.73946173,0.00028261,2]
[385278612,1757734247060,-188.03381935,0.00028261,2]
[385278614,1757734247070,-186.75885241,0.00028261,2]
[385278616,1757734247079,-187.55954621,0.00028261,2]
[385278618,1757734247088,-500.0,0.00028261,2]
[385278620,1757734247098,-1500.0,0.00028268,5]
[385278622,1757734247107,-522.62248946,0.00028268,5]
[385278624,1757734247116,-13300.4518986,0.00028271,2]
[385278626,1757734247126,-500.0,0.00028278,2]
[385278628,1757734247135,-1604.0,0.00028281,2]
[385278630,1757734247144,-161.11240797,0.00028281,2]
[385278632,1757734247153,-200.0,0.000283,120]
[385278635,1757734247163,-2000.0,0.000283,120]
[385278637,1757734247172,-160.0,0.00028333,8]
[385278639,1757734247182,-161.11240797,0.00028381,2]
[385278640,1757734247296,-500.0,0.0002839,2]
[385278641,1757734247306,-2000.0,0.000284,120]
[385278642,1757734247316,-1000.77402898,0.00028468,2]
[385278643,1757734247325,-161.11240797,0.00028481,2]
[385278644,1757734247334,-2000.0,0.000285,2]
[385278645,1757734247343,-2000.0,0.000285,120]
[385278646,1757734247352,-417.15472785,0.000285,120]
[385278647,1757734247362,-1593.04414258,0.000285,7]
[385278648,1757734247372,-1001.863534,0.000285,2]
[385278649,1757734247381,-500.0,0.00028507,2]
[385278650,1757734247390,-500.0,0.00028508,5]
[385278651,1757734247399,-500.0,0.00028535,2]
[385278652,1757734247410,-720.0,0.00028555,20]
[385278654,1757734247421,-1358.4785954,0.00028556,2]
[385278656,1757734247431,-500.0,0.00028567,2]
[385278658,1757734247440,-1500.0,0.00028568,5]
[385278660,1757734247450,-1500.0,0.00028568,5]
[385278662,1757734247459,-450.0,0.00028568,5]
[385278664,1757734247468,-350.0,0.00028568,5]
[385278666,1757734247477,-500.10623044,0.00028573,5]
[385278668,1757734247492,-300.0,0.00028573,5]
[385278670,1757734247503,-208.0,0.0002858,30]
[385278672,1757734247512,-161.11240797,0.00028581,2]
[385278674,1757734247521,-151.0,0.00028583,7]
[385278676,1757734247530,-190.0,0.00028585,2]
[385278678,1757734247539,-2077.0,0.00028588,2]
[385278680,1757734247548,-26600.9037972,0.0002859,2]
[385278682,1757734247558,-1413.25,0.000286,7]
[385278684,1757734247569,-4516.24,0.000286,7]
[385278686,1757734247578,-52766.65,0.000286,7]
[385278688,1757734247587,-1595.99,0.000286,7]
[385278690,1757734247596,-2000.0,0.000286,120]
[385278692,1757734247605,-217.73838971,0.000286,7]
[385278694,1757734247614,-417.15472785,0.000286,7]
[385278696,1757734247623,-847.12775373,0.000286,7]
[385278698,1757734247633,-309.63860878,0.00028643,10]
[385278700,1757734247642,-155.96508,0.00028668,2]
[385278702,1757734247651,-160.0,0.00028679,9]
[385278704,1757734247661,-161.11240797,0.00028681,2]
[385278706,1757734247670,-500.0,0.00028716,2]
[385278708,1757734247679,-4000.0,0.0002876,5]
[385278710,1757734247689,-200.10888635,0.00028767,5]
[385278712,1757734247698,-161.11240797,0.00028781,2]
[385278714,1757734247707,-800.0,0.00028786,2]
[385278716,1757734247716,-896.42,0.000288,60]
[385278718,1757734247725,-168.69085998,0.000288,7]
[385278720,1757734247734,-500.0,0.00028809,2]
[385278722,1757734247743,-800.0,0.00028811,2]
[385278724,1757734247753,-2000.0,0.00028816,5]
[385278726,1757734247762,-800.0,0.0002884,2]
[385278728,1757734247771,-31676.93873244,0.0002884,30]
[385278730,1757734247781,-800.0,0.0002885,2]
[385278732,1757734247789,-500.0,0.00028861,2]
[385278734,1757734247797,-2581.89830366,0.00028862,2]
[385278736,1757734247806,-501.94610468,0.00028868,2]
[385278738,1757734247815,-2581.89830366,0.00028876,2]
[385278740,1757734247826,-213.30796078,0.0002888,7]